fUST/lending_fUST_20250523
["ID","MTS","AMOUNT","RATE_DAILY","PERIOD"]
[362027722,1747939840998,-430.0,0.00020821,2]
[362027724,1747939841007,-430.0,0.00020821,2]
[362027726,1747939841016,-430.0,0.00020821,2]
[362027728,1747939841025,-430.0,0.00020821,2]
[362027730,1747939841034,-461.54,0.00020821,2]
[362027731,1747939841043,-430.0,0.00020821,2]
[362027734,1747939841052,-430.0,0.00020821,2]
[362027736,1747939841061,-430.0,0.00020821,2]
[362027738,1747939841070,-430.0,0.00020821,2]
[362027740,1747939841080,-571.75,0.00020821,2]
[362027741,1747939841089,-430.0,0.00020821,2]
[362027744,1747939841098,-481.06,0.00020821,2]
[362027746,1747939841108,-430.0,0.00020821,2]
[362027748,1747939841117,-430.0,0.00020821,2]
[362027750,1747939841127,-430.0,0.00020821,2]
[362027752,1747939841136,-420.0,0.00020899,2]
[362027754,1747939841145,-216.22918458,0.00020934,4]
[362027756,1747939841155,-100000.0,0.0002099,2]
[362027758,1747939841165,-207.4,0.0002108,2]
[362027760,1747939841176,-430.0,0.00021093,2]
[362027762,1747939841185,-430.0,0.00021093,2]
[362027764,1747939841194,-424.5744842,0.00021093,2]
[362027766,1747939841204,-430.0,0.00021094,2]
[362027768,1747939841213,-430.0,0.00021094,2]
[362027770,1747939841223,-1351.73,0.00021094,2]
[362027772,1747939841233,-870.11,0.00021094,2]
[362027774,1747939841242,-814.67,0.00021094,2]
[362027776,1747939841251,-430.0,0.00021094,2]
[362027778,1747939841260,-430.0,0.00021094,2]
[362027780,1747939841270,-222.97089053,0.00021094,2]
[362027782,1747939841279,-430.0,0.00021094,2]
[362027784,1747939841288,-538.30854735,0.00021094,2]
[362027786,1747939841297,-430.0,0.00021094,2]
[362027788,1747939841307,-430.0,0.00021094,2]
[362027790,1747939841316,-430.0,0.00021094,2]
[362027792,1747939841325,-591.2,0.00021094,2]
[362027794,1747939841336,-430.0,0.00021094,2]
[362027796,1747939841345,-496.79,0.00021094,2]
[362027798,1747939841354,-564.74,0.00021094,2]
[362027800,1747939841364,-520.01909859,0.00021094,2]
[362027802,1747939841373,-828.74,0.00021094,2]
[362027804,1747939841383,-890.01,0.00021094,2]
[362027806,1747939841393,-430.0,0.00021094,2]
[362027808,1747939841402,-430.0,0.00021094,2]
[362027810,1747939841411,-430.0,0.00021094,2]
[362027812,1747939841423,-271.46210232,0.00021095,2]
[362027814,1747939841433,-430.0,0.00021095,2]
[362027816,1747939841443,-430.0,0.00021095,2]
[362027818,1747939841452,-430.0,0.00021095,2]
[362027820,1747939841462,-430.0,0.00021095,2]
[362027822,1747939841472,-430.0,0.00021095,2]
[362027824,1747939841482,-430.0,0.00021095,2]
[362027826,1747939841491,-193.95723733,0.00021095,2]
[362027828,1747939841500,-430.0,0.00021095,2]
[362027830,1747939841510,-430.0,0.00021095,2]
[362027832,1747939841519,-430.0,0.00021095,2]
[362027834,1747939841528,-430.0,0.00021095,2]
[362027836,1747939841537,-461.54,0.00021095,2]
[362027838,1747939841547,-430.0,0.00021095,2]
[362027840,1747939841556,-430.0,0.00021095,2]
[362027842,1747939841566,-430.0,0.00021095,2]
[362027844,1747939841576,-430.0,0.00021095,2]
[362027846,1747939841586,-571.75,0.00021095,2]
[362027848,1747939841595,-430.0,0.00021095,2]
[362027850,1747939841605,-481.06,0.00021095,2]
[362027852,1747939841614,-430.0,0.00021095,2]
[362027854,1747939841625,-430.0,0.00021095,2]
[362027857,1747939841635,-430.0,0.00021095,2]
[362027859,1747939841644,-216.22918458,0.00021107,4]
[362027861,1747939841654,-22288.90052535,0.0002111,10]
[362027863,1747939841663,-216.22918458,0.00021279,5]
[362027865,1747939841672,-1474.59717618,0.00021354,2]
[362027867,1747939841681,-430.0,0.00021367,2]
[362027869,1747939841690,-430.0,0.00021367,2]
[362027871,1747939841699,-430.0,0.00021368,2]
[362027873,1747939841708,-430.0,0.00021368,2]
[362027875,1747939841718,-1351.73,0.00021368,2]
[362027877,1747939841728,-870.11,0.00021368,2]
[362027879,1747939841738,-814.67,0.00021368,2]
[362027881,1747939841748,-430.0,0.00021368,2]
[362027883,1747939841758,-430.0,0.00021368,2]
[362027885,1747939841768,-430.0,0.00021368,2]
[362027887,1747939841781,-430.0,0.00021368,2]
[362027889,1747939841791,-430.0,0.00021368,2]
[362027890,1747939841800,-430.0,0.00021368,2]
[362027891,1747939841810,-591.2,0.00021368,2]
[362027892,1747939841821,-430.0,0.00021368,2]
[362027893,1747939841830,-496.79,0.00021368,2]
[362027895,1747939841840,-564.74,0.00021368,2]
[362027896,1747939841850,-828.74,0.00021368,2]
[362027897,1747939841859,-890.01,0.00021368,2]
[362027898,1747939841869,-430.0,0.00021368,2]
[362027899,1747939841879,-430.0,0.00021368,2]
[362027900,1747939841888,-430.0,0.00021368,2]
[362027901,1747939841898,-430.0,0.00021369,2]
[362027902,1747939841907,-430.0,0.00021369,2]
[362027903,1747939841916,-430.0,0.00021369,2]
[362027904,1747939841926,-430.0,0.00021369,2]
[362027905,1747939841935,-430.0,0.00021369,2]
[362027906,1747939841946,-430.0,0.00021369,2]
[362027907,1747939841956,-430.0,0.00021369,2]
[362027908,1747939841965,-430.0,0.00021369,2]
[362027909,1747939841975,-430.0,0.00021369,2]
[362027910,1747939841984,-430.0,0.00021369,2]
[362027911,1747939841994,-461.54,0.00021369,2]
[362027912,1747939842003,-430.0,0.00021369,2]
[362027913,1747939842013,-430.0,0.00021369,2]
[362027914,1747939842023,-562.6149683,0.00021369,2]
[362027915,1747939842033,-430.0,0.00021369,2]
[362027916,1747939842043,-571.75,0.00021369,2]
[362027917,1747939842052,-430.0,0.00021369,2]
[362027918,1747939842061,-481.06,0.00021369,2]
[362027919,1747939842071,-430.0,0.00021369,2]
[362027920,1747939842080,-430.0,0.00021369,2]
[362027921,1747939842089,-430.0,0.00021369,2]
[362027922,1747939842098,-216.22918458,0.00021452,5]
[362027923,1747939842108,-1000.0,0.00021543,2]
[362027924,1747939842118,-216.22918458,0.00021624,5]
[362027925,1747939842128,-430.0,0.00021641,2]
[362027926,1747939842139,-430.0,0.00021641,2]
[362027927,1747939842150,-430.0,0.00021642,2]
[362027928,1747939842159,-430.0,0.00021642,2]
[362027929,1747939842168,-1351.73,0.00021642,2]
[362027930,1747939842178,-870.11,0.00021642,2]
[362027931,1747939842187,-814.67,0.00021642,2]
[362027932,1747939842197,-430.0,0.00021642,2]
[362027933,1747939842206,-430.0,0.00021642,2]
[362027934,1747939842215,-430.0,0.00021642,2]
[362027935,1747939842225,-439.63379942,0.00021642,2]
[362027936,1747939842234,-430.0,0.00021642,2]
[362027937,1747939842243,-529.75354333,0.00021642,2]
[362027938,1747939842253,-591.2,0.00021642,2]
[362027939,1747939842262,-454.19820533,0.00021642,2]
[362027940,1747939842273,-496.79,0.00021642,2]
[362027941,1747939842283,-564.74,0.00021642,2]
[362027942,1747939842295,-828.74,0.00021642,2]
[362027943,1747939842305,-890.01,0.00021642,2]
[362027944,1747939842315,-430.0,0.00021642,2]
[362027945,1747939842324,-430.0,0.00021642,2]
[362027946,1747939842334,-430.0,0.00021642,2]
[362027947,1747939842343,-430.0,0.00021643,2]
[362027948,1747939842353,-430.0,0.00021643,2]
[362027949,1747939842362,-430.0,0.00021643,2]
[362027950,1747939842372,-430.0,0.00021643,2]
[362027951,1747939842382,-430.0,0.00021643,2]
[362027952,1747939842391,-388.98756838,0.00021643,2]
[362027953,1747939842401,-430.0,0.00021643,2]
[362027955,1747939842410,-430.0,0.00021643,2]
[362027956,1747939842419,-430.0,0.00021643,2]
[362027957,1747939842429,-430.0,0.00021643,2]
[362027959,1747939842438,-461.54,0.00021643,2]
[362027961,1747939842447,-430.0,0.00021643,2]
[362027962,1747939842456,-430.0,0.00021643,2]
[362027963,1747939842467,-430.0,0.00021643,2]
[362027964,1747939842476,-571.75,0.00021643,2]
[362027965,1747939842486,-430.0,0.00021643,2]
[362027966,1747939842496,-481.06,0.00021643,2]
[362027972,1747939842651,-430.0,0.00021643,2]
[362027973,1747939842662,-430.0,0.00021643,2]
[362027974,1747939842672,-430.0,0.00021643,2]
[362027975,1747939842681,-369.04069531,0.00021701,2]
[362027976,1747939842692,-12638.53552368,0.00021789,2]
[362027977,1747939842702,-422.78357425,0.00021789,2]
[362027978,1747939842712,-894.64583333,0.00021789,2]
[362027979,1747939842721,-212.4501065,0.00021789,2]
[362027980,1747939842731,-160.0,0.00021789,2]
[362027981,1747939842741,-160.0,0.00021789,2]
[362027982,1747939842750,-216.22918458,0.00021797,6]
[362027983,1747939842761,-1444.32,0.00021906,3]
[362027984,1747939842775,-722.16,0.00021906,3]
[362027985,1747939842784,-361.08,0.00021906,3]
[362027986,1747939842794,-9914.48,0.00021907,3]
[362027987,1747939842804,-5777.24,0.00021907,3]
[362027988,1747939842813,-2888.62,0.00021907,3]
[362027989,1747939842823,-430.0,0.00021915,2]
[362027990,1747939842832,-430.0,0.00021915,2]
[362027991,1747939842842,-340.92594743,0.00021916,2]
[362027992,1747939842852,-430.0,0.00021916,2]
[362027993,1747939842861,-1351.73,0.00021916,2]
[362027994,1747939842871,-870.11,0.00021916,2]
[362027995,1747939842881,-814.67,0.00021916,2]
[362027996,1747939842890,-430.0,0.00021916,2]
[362027997,1747939842900,-430.0,0.00021916,2]
[362027998,1747939842910,-463.73127319,0.00021916,2]
[362027999,1747939842919,-430.0,0.00021916,2]
[362028000,1747939842929,-591.2,0.00021916,2]
[362028001,1747939842939,-496.79,0.00021916,2]
[362028002,1747939842948,-564.74,0.00021916,2]
[362028003,1747939842958,-828.74,0.00021916,2]
[362028004,1747939842967,-890.01,0.00021916,2]
[362028005,1747939842977,-512.39856782,0.00021916,2]
[362028006,1747939842986,-430.0,0.00021916,2]
[362028007,1747939842996,-430.0,0.00021916,2]
[362028008,1747939843005,-430.0,0.00021917,2]
[362028009,1747939843014,-430.0,0.00021917,2]
[362028010,1747939843024,-430.0,0.00021917,2]
[362028011,1747939843033,-430.0,0.00021917,2]
[362028012,1747939843042,-430.0,0.00021917,2]
[362028013,1747939843052,-430.0,0.00021917,2]
[362028014,1747939843062,-430.0,0.00021917,2]
[362028015,1747939843071,-430.0,0.00021917,2]
[362028016,1747939843081,-420.89237845,0.00021917,2]
[362028017,1747939843090,-461.54,0.00021917,2]
[362028018,1747939843100,-430.0,0.00021917,2]
[362028019,1747939843109,-430.0,0.00021917,2]
[362028020,1747939843118,-430.0,0.00021917,2]
[362028021,1747939843129,-571.75,0.00021917,2]
[362028022,1747939843138,-430.0,0.00021917,2]
[362028023,1747939843147,-481.06,0.00021917,2]
[362028024,1747939843156,-430.0,0.00021917,2]
[362028025,1747939843166,-430.0,0.00021917,2]
[362028026,1747939843175,-158.63566411,0.00021917,2]
[362028027,1747939843186,-500.0,0.00021918,2]
[362028028,1747939843196,-323.20648506,0.00021918,2]
[362028029,1747939843206,-500.0,0.00021918,2]
[362028030,1747939843216,-500.0,0.00021918,2]
[362028031,1747939843227,-500.0,0.00021918,2]
[362028032,1747939843236,-587.48179847,0.00021918,2]
[362028033,1747939843246,-500.0,0.00021918,2]
[362028034,1747939843255,-500.0,0.00021918,2]
[362028035,1747939843266,-216.22918458,0.00021969,6]
[362028036,1747939843275,-500.0,0.00022047,2]
[362028037,1747939843285,-500.0,0.00022087,2]
[362028038,1747939843295,-415.48962466,0.00022087,2]
[362028039,1747939843304,-500.0,0.00022087,2]
[362028040,1747939843313,-600.0,0.00022087,2]
[362028041,1747939843323,-500.0,0.00022092,2]
[362028042,1747939843332,-500.0,0.00022092,2]
[362028043,1747939843342,-246.71965941,0.00022092,2]
[362028044,1747939843351,-500.0,0.00022092,2]
[362028045,1747939843361,-500.0,0.00022093,2]
[362028046,1747939843371,-500.0,0.00022093,2]
[362028047,1747939843380,-489.944,0.00022098,2]
[362028048,1747939843390,-500.0,0.00022133,2]
[362028049,1747939843399,-500.0,0.00022133,2]
[362028050,1747939843408,-500.0,0.00022133,2]
[362028051,1747939843419,-216.22918458,0.00022141,6]
[362028052,1747939843428,-430.0,0.00022189,2]
[362028053,1747939843438,-430.0,0.00022189,2]
[362028054,1747939843447,-430.0,0.0002219,2]
[362028055,1747939843457,-1351.73,0.0002219,2]
[362028056,1747939843466,-870.11,0.0002219,2]
[362028057,1747939843475,-814.67,0.0002219,2]
[362028058,1747939843484,-430.0,0.0002219,2]
[362028059,1747939843494,-430.0,0.0002219,2]
[362028060,1747939843503,-430.0,0.0002219,2]
[362028061,1747939843512,-591.2,0.0002219,2]
[362028062,1747939843522,-496.79,0.0002219,2]
[362028063,1747939843531,-564.74,0.0002219,2]
[362028064,1747939843541,-828.74,0.0002219,2]
[362028065,1747939843551,-890.01,0.0002219,2]
[362028066,1747939843560,-430.0,0.0002219,2]
[362028067,1747939843570,-430.0,0.0002219,2]
[362028068,1747939843579,-430.0,0.00022191,2]
[362028069,1747939843589,-430.0,0.00022191,2]
[362028070,1747939843612,-430.0,0.00022191,2]
[362028071,1747939843623,-394.09111951,0.00022191,2]
[362028072,1747939843634,-430.0,0.00022191,2]
[362028073,1747939843644,-505.0742741,0.00022191,2]
[362028074,1747939843654,-430.0,0.00022191,2]
[362028075,1747939843664,-430.0,0.00022191,2]
[362028076,1747939843674,-461.54,0.00022191,2]
[362028077,1747939843684,-430.0,0.00022191,2]
[362028078,1747939843694,-430.0,0.00022191,2]
[362028079,1747939843706,-430.0,0.00022191,2]
[362028080,1747939843716,-571.75,0.00022191,2]
[362028081,1747939843727,-430.0,0.00022191,2]
[362028082,1747939843737,-481.06,0.00022191,2]
[362028083,1747939843749,-430.0,0.00022191,2]
[362028084,1747939843759,-430.0,0.00022191,2]
[362028085,1747939843773,-216.22918458,0.00022314,7]
[362028086,1747939843784,-5000.0,0.000224,2]
[362028087,1747939843795,-215.0738,0.00022449,2]
[362028088,1747939843805,-430.0,0.00022463,2]
[362028089,1747939843816,-430.0,0.00022463,2]
[362028090,1747939843826,-430.0,0.00022464,2]
[362028091,1747939843836,-1351.73,0.00022464,2]
[362028092,1747939843849,-870.11,0.00022464,2]
[362028093,1747939843859,-814.67,0.00022464,2]
[362028094,1747939843870,-125.0602496,0.00022464,2]
[362028095,1747939843895,-304.9397504,0.00022464,2]
[362028096,1747939843905,-201.51269803,0.00022464,2]
[362030435,1747940069845,206.924897,0.00013699,2]
[362030441,1747940739760,-207.1967708,0.00017117,2]
[362030444,1747940762870,-249.37903603,0.00017117,2]
[362030445,1747940764406,-290.2095233,0.00017117,2]
[362030446,1747940766534,-298.6558789,0.00017117,2]
[362030447,1747940768317,-186.28358166,0.00017117,2]
[362030448,1747940770251,-154.538006,0.00017117,2]
[362030449,1747940771827,-170.63,0.00017117,2]
[362030450,1747940775861,-250.0,0.00017117,2]
[362030451,1747940782530,-165.4310943,0.00017117,2]
[362030452,1747940791134,-214.65108123,0.00017117,2]
[362030453,1747940793297,-152.0,0.00017117,2]
[362030454,1747940797043,-379.19778965,0.00017117,2]
[362030455,1747940799119,-379.19778965,0.00017117,2]
[362030488,1747941032216,-5000.0,0.00017117,2]
[362030489,1747941032226,-157.41998691,0.0001729,2]
[362030490,1747941032237,-1775.7568469,0.00018005,2]
[362030491,1747941032248,-207.88272831,0.0001812,2]
[362030492,1747941032259,-1099.0,0.00018301,2]
[362030493,1747941032269,-1070.988131,0.00018303,2]
[362030494,1747941032279,-300.0,0.00018702,2]
[362030495,1747941032289,-300.0,0.00018703,2]
[362030496,1747941032298,-24900.0,0.00018704,2]
[362030497,1747941032308,-262.36664484,0.00018866,2]
[362030498,1747941032318,-1630.17901461,0.000189,2]
[362030499,1747941032328,-500.0,0.00019167,2]
[362030500,1747941032338,-500.0,0.00019167,2]
[362030501,1747941032347,-500.0,0.00019167,2]
[362030502,1747941032357,-500.0,0.00019167,2]
[362030503,1747941032366,-500.0,0.00019167,2]
[362030504,1747941032376,-500.0,0.00019167,2]
[362030505,1747941032385,-500.0,0.00019167,2]
[362030506,1747941032395,-500.0,0.00019167,2]
[362030507,1747941032404,-600.19133034,0.00019167,2]
[362030508,1747941032413,-500.0,0.00019167,2]
[362030509,1747941032423,-500.0,0.00019167,2]
[362030510,1747941032433,-494.59398479,0.00019167,2]
[362030511,1747941032442,-500.0,0.00019167,2]
[362030512,1747941032452,-500.0,0.00019167,2]
[362030513,1747941032462,-518.09388039,0.00019167,2]
[362030514,1747941032472,-8073.27,0.00019168,3]
[362030515,1747941032482,-4036.63,0.00019168,3]
[362030516,1747941032492,-2018.32,0.00019168,3]
[362030517,1747941032502,-1009.16,0.00019168,3]
[362030518,1747941032512,-504.58,0.00019168,3]
[362030519,1747941032522,-252.29,0.00019168,3]
[362030520,1747941032532,-756.88,0.00019168,3]
[362030521,1747941032542,-500.0,0.00019177,2]
[362030522,1747941032551,-500.0,0.00019177,2]
[362030523,1747941032561,-500.0,0.00019177,2]
[362030524,1747941032571,-500.0,0.00019177,2]
[362030525,1747941032581,-405.19576995,0.00019177,2]
[362030526,1747941032591,-237.19230586,0.00019177,2]
[362030527,1747941032601,-500.0,0.00019177,2]
[362030528,1747941032611,-500.0,0.00019177,2]
[362030529,1747941032621,-500.0,0.00019177,2]
[362030530,1747941032632,-500.0,0.00019177,2]
[362030531,1747941032644,-500.0,0.00019177,2]
[362030532,1747941032654,-500.0,0.00019177,2]
[362030533,1747941032664,-450.0,0.00019177,2]
[362030534,1747941032673,-500.0,0.00019177,2]
[362030535,1747941032683,-189.03473347,0.00019177,2]
[362030536,1747941032693,-373.84232132,0.00019177,2]
[362030537,1747941032703,-450.0,0.00019178,2]
[362030538,1747941032714,-450.0,0.00019178,2]
[362030539,1747941032723,-450.0,0.00019178,2]
[362030540,1747941032734,-450.0,0.00019178,2]
[362030541,1747941032744,-450.0,0.00019178,2]
[362030542,1747941032753,-334.7472617,0.00019178,2]
[362030543,1747941032961,-450.0,0.00019178,2]
[362030544,1747941032973,-450.0,0.00019178,2]
[362030545,1747941032983,-450.0,0.00019178,2]
[362030546,1747941032994,-461.54501572,0.00019178,2]
[362030547,1747941033004,-450.0,0.00019178,2]
[362030548,1747941033014,-450.0,0.00019178,2]
[362030549,1747941033024,-450.0,0.00019178,2]
[362030550,1747941033034,-450.0,0.00019178,2]
[362030551,1747941033046,-450.0,0.00019178,2]
[362030552,1747941033056,-450.0,0.00019178,2]
[362030553,1747941033066,-450.0,0.00019178,2]
[362030554,1747941033076,-450.0,0.00019178,2]
[362030555,1747941033088,-178.56783584,0.00019178,2]
[362030556,1747941033098,-430.0,0.00019178,2]
[362030557,1747941033108,-450.0,0.00019178,2]
[362030558,1747941033118,-450.0,0.00019178,2]
[362030559,1747941033128,-1140.85627546,0.00019178,2]
[362030560,1747941033139,-430.0,0.00019178,2]
[362030561,1747941033149,-450.0,0.00019178,2]
[362030562,1747941033160,-450.0,0.00019178,2]
[362030563,1747941033173,-450.0,0.00019178,2]
[362030564,1747941033184,-430.0,0.00019178,2]
[362030565,1747941033194,-430.0,0.00019178,2]
[362030566,1747941033204,-430.0,0.00019178,2]
[362030567,1747941033215,-450.0,0.00019178,2]
[362030568,1747941033225,-430.0,0.00019178,2]
[362030569,1747941033237,-450.0,0.00019178,2]
[362030570,1747941033248,-430.0,0.00019178,2]
[362030571,1747941033259,-450.0,0.00019178,2]
[362030572,1747941033269,-430.0,0.00019178,2]
[362030573,1747941033279,-450.0,0.00019178,2]
[362030574,1747941033290,-430.0,0.00019178,2]
[362030575,1747941033299,-450.0,0.00019178,2]
[362030576,1747941033309,-450.0,0.00019178,2]
[362030577,1747941033319,-430.0,0.00019178,2]
[362030578,1747941033329,-450.0,0.00019178,2]
[362030579,1747941033340,-430.0,0.00019178,2]
[362030580,1747941033350,-430.0,0.00019178,2]
[362030581,1747941033360,-430.0,0.00019178,2]
[362030582,1747941033370,-430.0,0.00019178,2]
[362030583,1747941033380,-430.0,0.00019178,2]
[362030584,1747941033389,-430.0,0.00019178,2]
[362030585,1747941033399,-430.0,0.00019178,2]
[362030586,1747941033408,-430.0,0.00019178,2]
[362030587,1747941033417,-450.0,0.00019178,2]
[362030588,1747941033427,-430.0,0.00019178,2]
[362030589,1747941033437,-450.0,0.00019178,2]
[362030590,1747941033446,-430.0,0.00019178,2]
[362030591,1747941033456,-430.0,0.00019178,2]
[362030592,1747941033476,-305.53511976,0.00019178,2]
[362030593,1747941033492,-450.0,0.00019178,2]
[362030594,1747941033503,-430.0,0.00019178,2]
[362030595,1747941033514,-450.0,0.00019178,2]
[362030596,1747941033525,-430.0,0.00019178,2]
[362030597,1747941033536,-450.0,0.00019178,2]
[362030598,1747941033548,-256.52594672,0.00019178,2]
[362030599,1747941033558,-450.0,0.00019178,2]
[362030600,1747941033569,-430.0,0.00019178,2]
[362030601,1747941033579,-450.0,0.00019178,2]
[362030602,1747941033588,-182.44597801,0.00019178,2]
[362030603,1747941033598,-430.0,0.00019178,2]
[362030604,1747941033608,-430.0,0.00019178,2]
[362030605,1747941033619,-430.0,0.00019178,2]
[362030606,1747941033629,-430.0,0.00019178,2]
[362030607,1747941033639,-430.0,0.00019178,2]
[362030608,1747941033650,-450.0,0.00019178,2]
[362030609,1747941033660,-430.0,0.00019178,2]
[362030610,1747941033670,-430.0,0.00019178,2]
[362030611,1747941033680,-430.0,0.00019178,2]
[362030612,1747941033691,-450.0,0.00019178,2]
[362030613,1747941033702,-430.0,0.00019178,2]
[362030614,1747941033713,-430.0,0.00019178,2]
[362030615,1747941033723,-430.0,0.00019178,2]
[362030616,1747941033735,-430.0,0.00019178,2]
[362030617,1747941033746,-450.0,0.00019178,2]
[362030618,1747941033757,-430.0,0.00019178,2]
[362030619,1747941033768,-450.0,0.00019178,2]
[362030620,1747941033779,-430.0,0.00019178,2]
[362030621,1747941033790,-430.0,0.00019178,2]
[362030622,1747941033800,-450.0,0.00019178,2]
[362030623,1747941033811,-430.0,0.00019178,2]
[362030624,1747941033821,-450.0,0.00019178,2]
[362030625,1747941033832,-430.0,0.00019178,2]
[362030626,1747941033843,-430.0,0.00019178,2]
[362030627,1747941033854,-430.0,0.00019178,2]
[362030628,1747941033864,-430.0,0.00019178,2]
[362030629,1747941033874,-450.0,0.00019178,2]
[362030630,1747941033884,-430.0,0.00019178,2]
[362030631,1747941033894,-450.0,0.00019178,2]
[362030632,1747941033906,-430.0,0.00019178,2]
[362030633,1747941033916,-430.0,0.00019178,2]
[362030634,1747941033926,-450.0,0.00019178,2]
[362030635,1747941033936,-430.0,0.00019178,2]
[362030636,1747941033945,-430.0,0.00019178,2]
[362030637,1747941033955,-576.77547368,0.00019178,2]
[362030638,1747941033966,-450.0,0.00019178,2]
[362030639,1747941033977,-218.02457465,0.00019178,2]
[362030640,1747941033991,-430.0,0.00019178,2]
[362030641,1747941034003,-430.0,0.00019178,2]
[362030642,1747941034013,-430.0,0.00019178,2]
[362030643,1747941034024,-304.21445751,0.00019178,2]
[362030644,1747941034034,-328.87543579,0.00019178,2]
[362030645,1747941034045,-430.0,0.00019178,2]
[362030646,1747941034055,-506.36555966,0.00019178,2]
[362030647,1747941034066,-430.0,0.00019178,2]
[362030648,1747941034076,-430.0,0.00019178,2]
[362030649,1747941034086,-430.0,0.00019178,2]
[362030650,1747941034097,-430.0,0.00019178,2]
[362030651,1747941034108,-472.09,0.00019178,2]
[362030652,1747941034117,-430.0,0.00019178,2]
[362030653,1747941034128,-430.0,0.00019178,2]
[362030654,1747941034138,-430.0,0.00019178,2]
[362030655,1747941034149,-430.0,0.00019178,2]
[362030656,1747941034162,-453.8643203,0.00019178,2]
[362030657,1747941034173,-300.0,0.00019178,2]
[362030658,1747941034183,-301.59274398,0.00019178,2]
[362030659,1747941034193,-450.0,0.00019178,2]
[362030660,1747941034204,-430.0,0.00019178,2]
[362030661,1747941034215,-430.0,0.00019178,2]
[362030662,1747941034225,-450.0,0.00019178,2]
[362030663,1747941034238,-430.0,0.00019178,2]
[362030664,1747941034251,-301.21740877,0.00019178,2]
[362030665,1747941034261,-430.0,0.00019178,2]
[362030666,1747941034271,-430.0,0.00019178,2]
[362030667,1747941034280,-450.0,0.00019178,2]
[362030668,1747941034291,-450.0,0.00019178,2]
[362030669,1747941034300,-450.0,0.00019178,2]
[362030670,1747941034310,-430.0,0.00019178,2]
[362030671,1747941034320,-430.0,0.00019178,2]
[362030672,1747941034330,-450.0,0.00019178,2]
[362030673,1747941034339,-450.0,0.00019178,2]
[362030674,1747941034349,-456.98,0.00019178,2]
[362030675,1747941034360,-430.0,0.00019178,2]
[362030676,1747941034370,-430.0,0.00019178,2]
[362030677,1747941034380,-450.0,0.00019178,2]
[362030678,1747941034390,-430.0,0.00019178,2]
[362030679,1747941034400,-450.0,0.00019178,2]
[362030680,1747941034410,-450.0,0.00019178,2]
[362030681,1747941034420,-430.0,0.00019178,2]
[362030682,1747941034430,-450.0,0.00019178,2]
[362030683,1747941034440,-283.8281304,0.00019178,2]
[362030684,1747941034449,-350.0,0.00019178,2]
[362030685,1747941034459,-450.0,0.00019178,2]
[362030686,1747941034469,-450.05198057,0.00019178,2]
[362030687,1747941034480,-450.0,0.00019178,2]
[362030688,1747941034490,-401.17491963,0.00019178,2]
[362030689,1747941034500,-430.0,0.00019178,2]
[362030690,1747941034510,-450.0,0.00019178,2]
[362030691,1747941034519,-430.0,0.00019178,2]